[Event "Late-Titled-Tuesday-Blitz-September-05-2023"]
[Site "Chess.com"]
[Date "2023.09.05"]
[Round "7"]
[White "SEBAZZANO"]
[Black "Chessdemon2019"]
[Result "0-1"]
[WhiteElo "2189"]
[BlackElo "2359"]
[TimeControl "180+1"]
[EndTime "15:17:25 PDT"]
[Termination "Chessdemon2019 won on time"]

1. d4 {[%clk 0:02:59.5]} 1... d5 {[%clk 0:02:56.8]} 2. Bf4 {[%clk 0:02:57.3]}
2... Nf6 {[%clk 0:02:52.9]} 3. e3 {[%clk 0:02:57.1]} 3... Bf5 {[%clk 0:02:52.9]}
4. Nf3 {[%clk 0:02:56.7]} 4... e6 {[%clk 0:02:53.3]} 5. Nbd2 {[%clk 0:02:55.1]}
5... Nbd7 {[%clk 0:02:53]} 6. Ne5 {[%clk 0:02:52.4]} 6... c6 {[%clk 0:02:50.1]}
7. Be2 {[%clk 0:02:50.8]} 7... h6 {[%clk 0:02:47.5]} 8. O-O {[%clk 0:02:47]}
8... Be7 {[%clk 0:02:44]} 9. c4 {[%clk 0:02:41.2]} 9... O-O {[%clk 0:02:41.4]}
10. c5 {[%clk 0:02:35.4]} 10... Nxe5 {[%clk 0:02:40.9]} 11. Bxe5 {[%clk
0:02:35.1]} 11... Nd7 {[%clk 0:02:40.3]} 12. Bg3 {[%clk 0:02:34.6]} 12... e5
{[%clk 0:02:39.5]} 13. Bxe5 {[%clk 0:02:16]} 13... Nxe5 {[%clk 0:02:37.7]} 14.
dxe5 {[%clk 0:02:16.9]} 14... Bxc5 {[%clk 0:02:38.2]} 15. Nb3 {[%clk 0:02:16.9]}
15... Be7 {[%clk 0:02:38.2]} 16. Nd4 {[%clk 0:02:16.1]} 16... Qd7 {[%clk
0:02:32.1]} 17. f4 {[%clk 0:02:02.8]} 17... Be4 {[%clk 0:02:31.8]} 18. Bg4
{[%clk 0:01:55]} 18... Qc7 {[%clk 0:02:31.9]} 19. Bf3 {[%clk 0:01:28.2]} 19...
Bxf3 {[%clk 0:02:25.6]} 20. Qxf3 {[%clk 0:01:26]} 20... Qb6 {[%clk 0:02:22.1]}
21. Nf5 {[%clk 0:01:22.3]} 21... Rfe8 {[%clk 0:02:20.2]} 22. Qg4 {[%clk
0:01:09.2]} 22... Bf8 {[%clk 0:02:20.3]} 23. Nxh6+ {[%clk 0:01:08.7]} 23... Kh7
{[%clk 0:02:20.6]} 24. Nxf7 {[%clk 0:01:05.8]} 24... c5 {[%clk 0:02:15.5]} 25.
Rf3 {[%clk 0:00:57.6]} 25... Kg8 {[%clk 0:02:09]} 26. Ng5 {[%clk 0:00:50.8]}
26... Be7 {[%clk 0:02:02.2]} 27. Ne6 {[%clk 0:00:42.9]} 27... Bf8 {[%clk
0:02:02.6]} 28. f5 {[%clk 0:00:40.5]} 28... Qxb2 {[%clk 0:01:57.2]} 29. Raf1
{[%clk 0:00:32.2]} 29... Qxe5 {[%clk 0:01:57.3]} 30. Rh3 {[%clk 0:00:28.3]}
30... Qf6 {[%clk 0:01:53.6]} 31. Qh5 {[%clk 0:00:20.2]} 31... Rac8 {[%clk
0:01:25.1]} 32. Qh8+ {[%clk 0:00:13.4]} 32... Kf7 {[%clk 0:01:25.2]} 33. Qh5+
{[%clk 0:00:13]} 33... Ke7 {[%clk 0:01:25.1]} 34. Qf3 {[%clk 0:00:11.5]} 34...
Qe5 {[%clk 0:01:18.2]} 35. g4 {[%clk 0:00:09]} 35... Kd6 {[%clk 0:01:12.5]} 36.
g5 {[%clk 0:00:07.3]} 36... g6 {[%clk 0:01:06.9]} 37. Nf4 {[%clk 0:00:05.1]}
37... Qxf5 {[%clk 0:01:04.3]} 38. Rh6 {[%clk 0:00:04.8]} 38... Qxg5+ {[%clk
0:01:04.4]} 39. Kh1 {[%clk 0:00:04.1]} 39... Qxh6 {[%clk 0:01:04.8]} 40. Qxd5+
{[%clk 0:00:03.6]} 40... Kc7 {[%clk 0:01:05.4]} 41. Ne6+ {[%clk 0:00:03.2]}
41... Rxe6 {[%clk 0:01:05.8]} 42. Qxe6 {[%clk 0:00:02.6]} 42... Kb8 {[%clk
0:01:00.4]} 0-1

[Event "Late-Titled-Tuesday-Blitz-September-05-2023"]
[Site "Chess.com"]
[Date "2023.09.05"]
[Round "7"]
[White "ContrVersia"]
[Black "Amirreza_p"]
[Result "1-0"]
[WhiteElo "2891"]
[BlackElo "2604"]
[TimeControl "180+1"]
[EndTime "15:17:26 PDT"]
[Termination "ContrVersia won by resignation"]

1. Nf3 {[%clk 0:03:00.9]} 1... d5 {[%clk 0:03:00.1]} 2. c4 {[%clk 0:03:00.7]}
2... e6 {[%clk 0:02:59.3]} 3. g3 {[%clk 0:03:00.8]} 3... Nf6 {[%clk 0:02:59.5]}
4. Bg2 {[%clk 0:03:01.4]} 4... dxc4 {[%clk 0:03:00.2]} 5. O-O {[%clk 0:03:01.8]}
5... a6 {[%clk 0:02:58.2]} 6. a4 {[%clk 0:03:01.5]} 6... Nc6 {[%clk 0:02:56.2]}
7. Na3 {[%clk 0:02:48.1]} 7... e5 {[%clk 0:02:39.6]} 8. Nxc4 {[%clk 0:02:41.6]}
8... e4 {[%clk 0:02:40.1]} 9. Ng5 {[%clk 0:02:27.9]} 9... Bf5 {[%clk 0:02:00.3]}
10. d3 {[%clk 0:02:19.7]} 10... exd3 {[%clk 0:01:56.6]} 11. e4 {[%clk
0:02:17.9]} 11... Bg4 {[%clk 0:01:38.2]} 12. f3 {[%clk 0:02:18.1]} 12... Bc8
{[%clk 0:01:30.5]} 13. e5 {[%clk 0:02:11.7]} 13... Nd5 {[%clk 0:01:29.8]} 14.
Qxd3 {[%clk 0:01:59.7]} 14... Be7 {[%clk 0:01:27.9]} 15. f4 {[%clk 0:01:55.1]}
15... Ndb4 {[%clk 0:01:23.3]} 16. Qxd8+ {[%clk 0:01:51.2]} 16... Bxd8 {[%clk
0:01:24.2]} 17. Ne4 {[%clk 0:01:41.7]} 17... Be6 {[%clk 0:01:21.9]} 18. b3
{[%clk 0:01:41.8]} 18... Be7 {[%clk 0:01:19.6]} 19. Bb2 {[%clk 0:01:31.5]} 19...
O-O-O {[%clk 0:01:18.5]} 20. f5 {[%clk 0:00:53]} 20... Bxc4 {[%clk 0:01:16.2]}
21. bxc4 {[%clk 0:00:53.9]} 21... Nd3 {[%clk 0:01:16.5]} 22. f6 {[%clk
0:00:54.5]} 22... gxf6 {[%clk 0:00:53.5]} 23. exf6 {[%clk 0:00:55.4]} 23... Bb4
{[%clk 0:00:53.6]} 24. Rab1 {[%clk 0:00:51]} 24... Nxb2 {[%clk 0:00:46.4]} 25.
Rxb2 {[%clk 0:00:51.9]} 25... a5 {[%clk 0:00:46.6]} 26. Ng5 {[%clk 0:00:51.6]}
26... Ne5 {[%clk 0:00:39.3]} 27. Re2 {[%clk 0:00:49.1]} 27... Rde8 {[%clk
0:00:29.9]} 28. Rxe5 {[%clk 0:00:37.4]} 28... Rxe5 {[%clk 0:00:25.4]} 29. Nxf7
{[%clk 0:00:37.8]} 29... Rhe8 {[%clk 0:00:14.1]} 30. Bh3+ {[%clk 0:00:30.7]}
30... Kb8 {[%clk 0:00:11]} 31. Nxe5 {[%clk 0:00:30.9]} 31... Rxe5 {[%clk
0:00:11.9]} 32. f7 {[%clk 0:00:29.3]} 32... Bf8 {[%clk 0:00:10.3]} 33. Rd1
{[%clk 0:00:29.5]} 1-0

[Event "Late-Titled-Tuesday-Blitz-September-05-2023"]
[Site "Chess.com"]
[Date "2023.09.05"]
[Round "7"]
[White "tylityli"]
[Black "InadaC"]
[Result "1-0"]
[WhiteElo "2316"]
[BlackElo "2136"]
[TimeControl "180+1"]
[EndTime "15:17:31 PDT"]
[Termination "tylityli won by resignation"]

1. d4 {[%clk 0:02:57.1]} 1... Nf6 {[%clk 0:02:59.3]} 2. c4 {[%clk 0:02:57.3]}
2... e6 {[%clk 0:02:51.2]} 3. Nc3 {[%clk 0:02:57.3]} 3... Bb4 {[%clk 0:02:50.7]}
4. e3 {[%clk 0:02:57.4]} 4... O-O {[%clk 0:02:50.6]} 5. Ne2 {[%clk 0:02:58.3]}
5... d5 {[%clk 0:02:50.5]} 6. a3 {[%clk 0:02:59]} 6... Be7 {[%clk 0:02:49.7]} 7.
cxd5 {[%clk 0:02:57.9]} 7... exd5 {[%clk 0:02:49.8]} 8. g3 {[%clk 0:02:57.8]}
8... c6 {[%clk 0:02:50.4]} 9. Bg2 {[%clk 0:02:57.1]} 9... Bf5 {[%clk 0:02:50.6]}
10. O-O {[%clk 0:02:56.9]} 10... Nbd7 {[%clk 0:02:50.2]} 11. f3 {[%clk
0:02:56.4]} 11... Nb6 {[%clk 0:02:46.7]} 12. e4 {[%clk 0:02:56.6]} 12... dxe4
{[%clk 0:02:46.2]} 13. fxe4 {[%clk 0:02:56.9]} 13... Bg4 {[%clk 0:02:46.5]} 14.
h3 {[%clk 0:02:55.6]} 14... Bxe2 {[%clk 0:02:45.9]} 15. Nxe2 {[%clk 0:02:53.6]}
15... Re8 {[%clk 0:02:44.2]} 16. Kh2 {[%clk 0:02:50.3]} 16... Rc8 {[%clk
0:02:38.2]} 17. b4 {[%clk 0:02:48.9]} 17... Nc4 {[%clk 0:02:36.9]} 18. Qd3
{[%clk 0:02:44.8]} 18... b5 {[%clk 0:02:35.1]} 19. Bf4 {[%clk 0:02:37.4]} 19...
a5 {[%clk 0:02:34.9]} 20. Rab1 {[%clk 0:02:28]} 20... axb4 {[%clk 0:02:28.6]}
21. axb4 {[%clk 0:02:28.9]} 21... Ra8 {[%clk 0:02:27.1]} 22. Rfc1 {[%clk
0:02:26.7]} 22... Ra3 {[%clk 0:02:26.1]} 23. Rc3 {[%clk 0:02:26.5]} 23... Rxc3
{[%clk 0:02:20.8]} 24. Nxc3 {[%clk 0:02:25.8]} 24... Nh5 {[%clk 0:02:19.3]} 25.
e5 {[%clk 0:02:14.4]} 25... Nxf4 {[%clk 0:02:18.5]} 26. gxf4 {[%clk 0:02:13.3]}
26... Qd7 {[%clk 0:02:04.6]} 27. d5 {[%clk 0:02:02.6]} 27... cxd5 {[%clk
0:01:59.9]} 28. Qxd5 {[%clk 0:02:00.6]} 28... Qf5 {[%clk 0:01:45.6]} 29. Qe4
{[%clk 0:01:52.9]} 29... Qd7 {[%clk 0:01:42.1]} 30. Rd1 {[%clk 0:01:45.1]} 30...
Qa7 {[%clk 0:01:37.2]} 31. Nxb5 {[%clk 0:01:42.1]} 31... Qa4 {[%clk 0:01:29.2]}
32. Nc3 {[%clk 0:01:32.9]} 32... Qxb4 {[%clk 0:01:24.2]} 33. Nd5 {[%clk
0:01:32.9]} 33... Qa4 {[%clk 0:00:41.6]} 34. Nxe7+ {[%clk 0:01:29]} 34... Kf8
{[%clk 0:00:37.8]} 35. Rd4 {[%clk 0:01:17.8]} 35... Kxe7 {[%clk 0:00:36.6]} 36.
Rxc4 {[%clk 0:01:17.5]} 36... Qd1 {[%clk 0:00:36.5]} 37. Qxh7 {[%clk 0:01:09.5]}
37... Qd2 {[%clk 0:00:30.8]} 38. Qxg7 {[%clk 0:01:07.3]} 38... Rf8 {[%clk
0:00:15.8]} 39. e6 {[%clk 0:00:54.1]} 39... Qd3 {[%clk 0:00:10.3]} 40. Rc7+
{[%clk 0:00:50.1]} 40... Kxe6 {[%clk 0:00:08.7]} 41. Qxf8 {[%clk 0:00:47.2]}
41... Qd4 {[%clk 0:00:07.9]} 42. Qxf7+ {[%clk 0:00:43.6]} 42... Kd6 {[%clk
0:00:08.3]} 43. Rd7+ {[%clk 0:00:43.2]} 1-0

[Event "Late-Titled-Tuesday-Blitz-September-05-2023"]
[Site "Chess.com"]
[Date "2023.09.05"]
[Round "7"]
[White "Sacbutt"]
[Black "jcmesafischer"]
[Result "1-0"]
[WhiteElo "2292"]
[BlackElo "2418"]
[TimeControl "180+1"]
[EndTime "15:17:35 PDT"]
[Termination "Sacbutt won by checkmate"]

1. d4 {[%clk 0:03:00.9]} 1... Nf6 {[%clk 0:02:59.1]} 2. c4 {[%clk 0:03:00.2]}
2... e6 {[%clk 0:02:59.2]} 3. Nf3 {[%clk 0:02:59.6]} 3... d5 {[%clk 0:02:57.8]}
4. Nc3 {[%clk 0:02:58.9]} 4... Be7 {[%clk 0:02:57.3]} 5. Bg5 {[%clk 0:02:58.8]}
5... O-O {[%clk 0:02:57]} 6. e3 {[%clk 0:02:59.4]} 6... b6 {[%clk 0:02:55.8]} 7.
Bxf6 {[%clk 0:02:55.6]} 7... Bxf6 {[%clk 0:02:55.5]} 8. cxd5 {[%clk 0:02:56]}
8... exd5 {[%clk 0:02:55.2]} 9. Bd3 {[%clk 0:02:56.6]} 9... c5 {[%clk
0:02:52.3]} 10. O-O {[%clk 0:02:52.8]} 10... Nc6 {[%clk 0:02:46.5]} 11. Bb5
{[%clk 0:02:44.5]} 11... Ne7 {[%clk 0:02:32.2]} 12. dxc5 {[%clk 0:02:35.9]}
12... bxc5 {[%clk 0:02:33.1]} 13. Nxd5 {[%clk 0:02:22.9]} 13... Nxd5 {[%clk
0:02:17.2]} 14. Bc6 {[%clk 0:02:22.5]} 14... Be6 {[%clk 0:02:16.1]} 15. Bxa8
{[%clk 0:02:14.7]} 15... Qxa8 {[%clk 0:02:17]} 16. Qc2 {[%clk 0:02:12.9]} 16...
Rc8 {[%clk 0:02:03.5]} 17. a3 {[%clk 0:02:04]} 17... Qb7 {[%clk 0:01:56.7]} 18.
Rab1 {[%clk 0:02:04.1]} 18... a5 {[%clk 0:01:49.9]} 19. Rfc1 {[%clk 0:01:48.5]}
19... g6 {[%clk 0:01:48.7]} 20. Nd2 {[%clk 0:01:42.4]} 20... Bf5 {[%clk
0:01:31.5]} 21. e4 {[%clk 0:01:41]} 21... Nf4 {[%clk 0:01:31.2]} 22. Re1 {[%clk
0:01:34.5]} 22... Bg4 {[%clk 0:00:42.8]} 23. Nc4 {[%clk 0:01:28]} 23... Rb8
{[%clk 0:00:30.6]} 24. Qd2 {[%clk 0:01:22]} 24... Bg5 {[%clk 0:00:19]} 25. Qxa5
{[%clk 0:01:17.3]} 25... Nd3 {[%clk 0:00:15.5]} 26. Ne3 {[%clk 0:00:38.4]} 26...
Nxe1 {[%clk 0:00:09.5]} 27. Nxg4 {[%clk 0:00:38.1]} 27... Qxe4 {[%clk
0:00:09.7]} 28. Rxe1 {[%clk 0:00:23.4]} 28... Qxg4 {[%clk 0:00:08.6]} 29. Qxc5
{[%clk 0:00:20.3]} 29... Rxb2 {[%clk 0:00:08.5]} 30. Re8+ {[%clk 0:00:19.9]}
30... Kg7 {[%clk 0:00:08.6]} 31. Qf8+ {[%clk 0:00:13.9]} 31... Kf6 {[%clk
0:00:08.7]} 32. Qe7+ {[%clk 0:00:11.7]} 32... Kf5 {[%clk 0:00:07.9]} 33. Qe5#
{[%clk 0:00:10.6]} 1-0

[Event "Late-Titled-Tuesday-Blitz-September-05-2023"]
[Site "Chess.com"]
[Date "2023.09.05"]
[Round "7"]
[White "baag"]
[Black "Sibelephant"]
[Result "0-1"]
[WhiteElo "2794"]
[BlackElo "3104"]
[TimeControl "180+1"]
[EndTime "15:17:39 PDT"]
[Termination "Sibelephant won by resignation"]

1. d4 {[%clk 0:03:00.9]} 1... Nf6 {[%clk 0:02:51.3]} 2. c4 {[%clk 0:03:01.5]}
2... e6 {[%clk 0:02:51.2]} 3. Nc3 {[%clk 0:03:01.4]} 3... Bb4 {[%clk 0:02:51]}
4. e3 {[%clk 0:03:02]} 4... O-O {[%clk 0:02:46.7]} 5. Bd3 {[%clk 0:03:01.9]}
5... Re8 {[%clk 0:02:46.7]} 6. Bd2 {[%clk 0:02:53]} 6... d5 {[%clk 0:02:34.1]}
7. cxd5 {[%clk 0:02:53.3]} 7... exd5 {[%clk 0:02:30.7]} 8. Rc1 {[%clk
0:02:52.6]} 8... c5 {[%clk 0:02:08.3]} 9. a3 {[%clk 0:02:37]} 9... Ba5 {[%clk
0:01:33.1]} 10. Nge2 {[%clk 0:02:11.1]} 10... cxd4 {[%clk 0:01:12.6]} 11. Nxd4
{[%clk 0:02:11.4]} 11... Nc6 {[%clk 0:01:11.8]} 12. Nce2 {[%clk 0:02:06.8]}
12... Bb6 {[%clk 0:01:08.7]} 13. Nxc6 {[%clk 0:02:03.8]} 13... bxc6 {[%clk
0:01:08.4]} 14. Rxc6 {[%clk 0:02:04.7]} 14... d4 {[%clk 0:01:04.6]} 15. O-O
{[%clk 0:01:46.3]} 15... Bb7 {[%clk 0:00:57.7]} 16. Rxb6 {[%clk 0:01:34.7]}
16... Qxb6 {[%clk 0:00:55.3]} 17. Nxd4 {[%clk 0:01:35.4]} 17... Qxb2 {[%clk
0:00:55.1]} 18. Bb4 {[%clk 0:01:30.3]} 18... a5 {[%clk 0:00:47.3]} 19. Bd6
{[%clk 0:01:16]} 19... Qb6 {[%clk 0:00:32.7]} 20. Bg3 {[%clk 0:01:03]} 20... Ba6
{[%clk 0:00:28.6]} 21. Bxa6 {[%clk 0:00:57.2]} 21... Qxa6 {[%clk 0:00:28.8]} 22.
Qf3 {[%clk 0:00:54.7]} 22... Ne4 {[%clk 0:00:27.7]} 23. Rd1 {[%clk 0:00:50.8]}
23... Rad8 {[%clk 0:00:27.1]} 24. h4 {[%clk 0:00:47.7]} 24... Qc4 {[%clk
0:00:19.2]} 25. h5 {[%clk 0:00:44.9]} 25... h6 {[%clk 0:00:18.9]} 26. Bh4 {[%clk
0:00:39.8]} 26... Rd5 {[%clk 0:00:19]} 27. g4 {[%clk 0:00:23.4]} 27... Nc3
{[%clk 0:00:17.4]} 28. Rd2 {[%clk 0:00:19.5]} 28... Nb5 {[%clk 0:00:14.2]} 29.
Kg2 {[%clk 0:00:02.2]} 29... Nxd4 {[%clk 0:00:14]} 30. exd4 {[%clk 0:00:02.3]}
30... Rxd4 {[%clk 0:00:14.4]} 31. Rxd4 {[%clk 0:00:03.2]} 31... Qxd4 {[%clk
0:00:15.1]} 32. Bg3 {[%clk 0:00:03.2]} 32... Qe4 {[%clk 0:00:15.3]} 0-1

[Event "Late-Titled-Tuesday-Blitz-September-05-2023"]
[Site "Chess.com"]
[Date "2023.09.05"]
[Round "7"]
[White "IMGC"]
[Black "Goryachkina"]
[Result "0-1"]
[WhiteElo "2432"]
[BlackElo "2681"]
[TimeControl "180+1"]
[EndTime "15:17:39 PDT"]
[Termination "Goryachkina won by resignation"]

1. d4 {[%clk 0:03:00.9]} 1... Nf6 {[%clk 0:02:59.5]} 2. Nf3 {[%clk 0:03:01.8]}
2... d5 {[%clk 0:02:58]} 3. e3 {[%clk 0:03:01.4]} 3... Bf5 {[%clk 0:02:53.7]} 4.
c4 {[%clk 0:03:00.2]} 4... c6 {[%clk 0:02:53.8]} 5. Nc3 {[%clk 0:03:00.3]} 5...
e6 {[%clk 0:02:53.8]} 6. Qb3 {[%clk 0:02:57.8]} 6... Qb6 {[%clk 0:02:48.5]} 7.
Bd2 {[%clk 0:02:57.9]} 7... Nbd7 {[%clk 0:02:45.6]} 8. Be2 {[%clk 0:02:54.2]}
8... h6 {[%clk 0:02:44.7]} 9. O-O {[%clk 0:02:54.1]} 9... Be7 {[%clk 0:02:44.8]}
10. Rfc1 {[%clk 0:02:46.7]} 10... O-O {[%clk 0:02:44.2]} 11. c5 {[%clk
0:02:46.8]} 11... Qc7 {[%clk 0:02:43.6]} 12. Qd1 {[%clk 0:02:47]} 12... e5
{[%clk 0:02:39.9]} 13. h3 {[%clk 0:02:35.2]} 13... e4 {[%clk 0:02:29.4]} 14. Nh2
{[%clk 0:02:32.8]} 14... Rfe8 {[%clk 0:02:14.7]} 15. b4 {[%clk 0:02:30.3]} 15...
Nf8 {[%clk 0:02:13]} 16. b5 {[%clk 0:02:27.2]} 16... Ng6 {[%clk 0:02:12.6]} 17.
bxc6 {[%clk 0:02:12.9]} 17... bxc6 {[%clk 0:02:13.5]} 18. Rab1 {[%clk
0:02:10.6]} 18... Qd7 {[%clk 0:02:12.6]} 19. Ng4 {[%clk 0:02:07.6]} 19... Nh4
{[%clk 0:02:00.1]} 20. Nxf6+ {[%clk 0:02:03.5]} 20... Bxf6 {[%clk 0:01:59.7]}
21. Bg4 {[%clk 0:02:04.2]} 21... h5 {[%clk 0:01:47.2]} 22. Bxf5 {[%clk
0:01:36.3]} 22... Qxf5 {[%clk 0:01:47]} 23. Qf1 {[%clk 0:01:22.1]} 23... Re6
{[%clk 0:01:43.7]} 24. Be1 {[%clk 0:01:12]} 24... Bd8 {[%clk 0:01:28.2]} 25. Ne2
{[%clk 0:00:54]} 25... Bc7 {[%clk 0:00:32.4]} 26. f4 {[%clk 0:00:43.1]} 26...
exf3 {[%clk 0:00:31.9]} 27. Bxh4 {[%clk 0:00:42.4]} 27... Rg6 {[%clk 0:00:31.2]}
28. g3 {[%clk 0:00:27.1]} 28... Qe4 {[%clk 0:00:30.8]} 29. Nf4 {[%clk
0:00:17.5]} 29... Qxe3+ {[%clk 0:00:28.5]} 30. Kh1 {[%clk 0:00:16.9]} 30... Bxf4
{[%clk 0:00:28]} 31. gxf4 {[%clk 0:00:16.7]} 31... Qxf4 {[%clk 0:00:28.3]} 32.
Bf2 {[%clk 0:00:11.4]} 32... Rg2 {[%clk 0:00:27.2]} 33. Bg1 {[%clk 0:00:12]}
33... Qg3 {[%clk 0:00:27.4]} 0-1

[Event "Late-Titled-Tuesday-Blitz-September-05-2023"]
[Site "Chess.com"]
[Date "2023.09.05"]
[Round "7"]
[White "miraitrunks"]
[Black "buenamor1972"]
[Result "0-1"]
[WhiteElo "2094"]
[BlackElo "2345"]
[TimeControl "180+1"]
[EndTime "15:17:43 PDT"]
[Termination "buenamor1972 won by checkmate"]

1. e4 {[%clk 0:03:00]} 1... e5 {[%clk 0:02:59.4]} 2. Nf3 {[%clk 0:02:59]} 2...
Nc6 {[%clk 0:02:59.8]} 3. Bb5 {[%clk 0:02:58]} 3... a6 {[%clk 0:02:59]} 4. Ba4
{[%clk 0:02:58.3]} 4... Nf6 {[%clk 0:02:58.6]} 5. O-O {[%clk 0:02:58]} 5... Be7
{[%clk 0:02:58.4]} 6. Re1 {[%clk 0:02:58.3]} 6... b5 {[%clk 0:02:57.6]} 7. Bb3
{[%clk 0:02:58.6]} 7... d6 {[%clk 0:02:58.1]} 8. h3 {[%clk 0:02:58.5]} 8... O-O
{[%clk 0:02:58.3]} 9. c3 {[%clk 0:02:57.2]} 9... Na5 {[%clk 0:02:58.4]} 10. Bc2
{[%clk 0:02:56.8]} 10... c5 {[%clk 0:02:59.3]} 11. d4 {[%clk 0:02:56.8]} 11...
Nd7 {[%clk 0:02:59.4]} 12. Nbd2 {[%clk 0:02:56.3]} 12... exd4 {[%clk 0:02:58.3]}
13. cxd4 {[%clk 0:02:56.4]} 13... Nc6 {[%clk 0:02:59]} 14. d5 {[%clk 0:02:55.8]}
14... Nce5 {[%clk 0:02:58.8]} 15. Nxe5 {[%clk 0:02:56]} 15... Nxe5 {[%clk
0:02:59.7]} 16. f4 {[%clk 0:02:55.8]} 16... Ng6 {[%clk 0:02:59.9]} 17. Qf3
{[%clk 0:02:50.3]} 17... Bh4 {[%clk 0:02:45.6]} 18. g3 {[%clk 0:02:49]} 18...
Bf6 {[%clk 0:02:45.5]} 19. h4 {[%clk 0:02:34.4]} 19... Bd4+ {[%clk 0:02:37.7]}
20. Kg2 {[%clk 0:02:33.7]} 20... f5 {[%clk 0:02:38]} 21. Nb3 {[%clk 0:02:19]}
21... fxe4 {[%clk 0:02:28.8]} 22. Bxe4 {[%clk 0:02:19.9]} 22... Bf6 {[%clk
0:02:26.7]} 23. h5 {[%clk 0:01:44.9]} 23... Ne7 {[%clk 0:02:23.1]} 24. Nxc5
{[%clk 0:01:36.4]} 24... dxc5 {[%clk 0:02:13.9]} 25. d6 {[%clk 0:01:36.6]} 25...
Ra7 {[%clk 0:02:05.8]} 26. dxe7 {[%clk 0:01:34.7]} 26... Rxe7 {[%clk 0:02:06.3]}
27. Be3 {[%clk 0:01:07.9]} 27... Qd7 {[%clk 0:01:59.4]} 28. Bxc5 {[%clk
0:00:52.7]} 28... Qh3+ {[%clk 0:01:20]} 29. Kg1 {[%clk 0:00:52.4]} 29... Rfe8
{[%clk 0:01:11.3]} 30. Bxe7 {[%clk 0:00:51.5]} 30... Bd4+ {[%clk 0:01:10.6]} 31.
Re3 {[%clk 0:00:44]} 31... Rxe7 {[%clk 0:01:10.2]} 32. Rd1 {[%clk 0:00:42.2]}
32... Bg4 {[%clk 0:01:03.1]} 33. Rxd4 {[%clk 0:00:18.3]} 33... Bxf3 {[%clk
0:00:59.2]} 34. Rxf3 {[%clk 0:00:09]} 34... Qxh5 {[%clk 0:00:46.1]} 35. Bd5+
{[%clk 0:00:08.4]} 35... Kf8 {[%clk 0:00:45.4]} 36. Rc3 {[%clk 0:00:08.6]} 36...
g6 {[%clk 0:00:42.3]} 37. Bg2 {[%clk 0:00:07.2]} 37... Re1+ {[%clk 0:00:37.3]}
38. Kf2 {[%clk 0:00:06.9]} 38... Qe2# {[%clk 0:00:36.9]} 0-1

[Event "Late-Titled-Tuesday-Blitz-September-05-2023"]
[Site "Chess.com"]
[Date "2023.09.05"]
[Round "7"]
[White "NoGalloNoParty"]
[Black "Jenia84"]
[Result "1/2-1/2"]
[WhiteElo "2542"]
[BlackElo "2331"]
[TimeControl "180+1"]
[EndTime "15:17:46 PDT"]
[Termination "Game drawn by agreement"]

1. d4 {[%clk 0:03:00.9]} 1... Nf6 {[%clk 0:02:53.6]} 2. Nf3 {[%clk 0:02:59.6]}
2... e6 {[%clk 0:02:52.7]} 3. e3 {[%clk 0:02:51.2]} 3... b6 {[%clk 0:02:52.7]}
4. b3 {[%clk 0:02:50.2]} 4... Bb7 {[%clk 0:02:52.7]} 5. Bb2 {[%clk 0:02:50]}
5... c5 {[%clk 0:02:52.6]} 6. Be2 {[%clk 0:02:47.9]} 6... cxd4 {[%clk
0:02:52.2]} 7. exd4 {[%clk 0:02:45.5]} 7... Be7 {[%clk 0:02:50.8]} 8. O-O {[%clk
0:02:44.4]} 8... O-O {[%clk 0:02:50.3]} 9. c4 {[%clk 0:02:42.6]} 9... d5 {[%clk
0:02:49.4]} 10. Nc3 {[%clk 0:02:39.7]} 10... dxc4 {[%clk 0:02:49.3]} 11. bxc4
{[%clk 0:02:39.6]} 11... Nc6 {[%clk 0:02:48.8]} 12. Qd2 {[%clk 0:02:30.7]} 12...
Na5 {[%clk 0:02:47.4]} 13. Ne5 {[%clk 0:02:23.5]} 13... Rc8 {[%clk 0:02:44.1]}
14. Rac1 {[%clk 0:02:21.3]} 14... Bb4 {[%clk 0:02:43.2]} 15. Qe3 {[%clk
0:02:06.9]} 15... Nd7 {[%clk 0:02:32.1]} 16. Ne4 {[%clk 0:01:52.1]} 16... Nxe5
{[%clk 0:02:29.4]} 17. dxe5 {[%clk 0:01:51.7]} 17... Bxe4 {[%clk 0:02:24.2]} 18.
Qxe4 {[%clk 0:01:51]} 18... Qd2 {[%clk 0:02:23.3]} 19. Bd3 {[%clk 0:01:36.7]}
19... g6 {[%clk 0:02:20.6]} 20. Rc2 {[%clk 0:01:35.1]} 20... Qg5 {[%clk
0:02:11.1]} 21. Bc1 {[%clk 0:01:32.8]} 21... Qf5 {[%clk 0:01:55.6]} 22. Qe2
{[%clk 0:01:18.5]} 22... Qh5 {[%clk 0:01:49.5]} 23. Qxh5 {[%clk 0:01:10.4]}
23... gxh5 {[%clk 0:01:49.2]} 24. Bg5 {[%clk 0:01:10.7]} 24... Rfe8 {[%clk
0:01:34.1]} 25. Rfc1 {[%clk 0:00:57.4]} 25... Be7 {[%clk 0:01:31.2]} 26. Bxe7
{[%clk 0:00:55.3]} 26... Rxe7 {[%clk 0:01:31]} 27. c5 {[%clk 0:00:56]} 27...
Rec7 {[%clk 0:01:25.8]} 28. cxb6 {[%clk 0:00:54.6]} 28... Rxc2 {[%clk
0:01:25.7]} 29. Bxc2 {[%clk 0:00:51.2]} 29... Kg7 {[%clk 0:01:06.8]} 30. bxa7
{[%clk 0:00:48.7]} 30... Ra8 {[%clk 0:00:51.5]} 31. h4 {[%clk 0:00:42.2]} 31...
Rxa7 {[%clk 0:00:50.7]} 32. Bd1 {[%clk 0:00:40.5]} 32... Kh6 {[%clk 0:00:39.4]}
33. Rc5 {[%clk 0:00:39.1]} 33... Rd7 {[%clk 0:00:34.3]} 34. Bf3 {[%clk
0:00:36.2]} 34... Nb7 {[%clk 0:00:30.6]} 35. Bxb7 {[%clk 0:00:33.8]} 35... Rxb7
{[%clk 0:00:30.2]} 36. a4 {[%clk 0:00:34.4]} 36... Rb1+ {[%clk 0:00:28.7]} 37.
Kh2 {[%clk 0:00:33.7]} 37... Rb4 {[%clk 0:00:25.8]} 38. Kg3 {[%clk 0:00:27]}
38... Rxa4 {[%clk 0:00:25.8]} 39. f3 {[%clk 0:00:26.6]} 39... Rb4 {[%clk
0:00:25]} 40. Rc8 {[%clk 0:00:24.1]} 40... Kg7 {[%clk 0:00:24.9]} 41. Rc7 {[%clk
0:00:23.5]} 41... Kg6 {[%clk 0:00:25]} 42. Rc8 {[%clk 0:00:19.3]} 1/2-1/2